fUSD/lending_fUSD_20250602
["ID","MTS","AMOUNT","RATE_DAILY","PERIOD"]
[363710452,1748836241015,-1786.31160918,0.00019994,2]
[363710453,1748836241025,-1786.31160918,0.00019994,2]
[363710454,1748836241034,-1786.31160918,0.00019994,2]
[363710455,1748836241044,-1786.31160918,0.00019994,2]
[363710456,1748836241053,-1786.31160918,0.00019994,2]
[363710457,1748836241063,-1786.31160918,0.00019994,2]
[363710458,1748836241072,-1230.8720179,0.00019995,2]
[363710459,1748836241081,-694711.86325189,0.00019995,2]
[363710460,1748836241312,-4994.44640991,0.00019995,2]
[363710462,1748836242766,-300.0,0.00019699,2]
[363710464,1748836242777,-33193.80962722,0.00019995,2]
[363710465,1748836242788,-21774.33769155,0.00019995,2]
[363710466,1748836242800,-4540.0,0.00019995,2]
[363710467,1748836242811,-254.01999999,0.00019995,2]
[363710468,1748836242822,-513.05658032,0.00019995,2]
[363710469,1748836242872,-782.37333414,0.00019995,2]
[363710470,1748836242978,-23926.99875482,0.00019995,2]
[363710471,1748836242990,-166994.91869256,0.00019995,2]
[363710481,1748836245842,-645.83288802,0.00019995,2]
[363710482,1748836245853,-784.9815,0.00019995,2]
[363710483,1748836245863,-1451.034749,0.00019995,2]
[363710484,1748836245875,-545.152395,0.00019995,2]
[363710485,1748836245888,-1041.44708,0.00019995,2]
[363710486,1748836245899,-472.95900005,0.00019995,2]
[363710487,1748836245909,-608.78929597,0.00019995,2]
[363710488,1748836245950,-710.49356834,0.00019995,2]
[363710489,1748836246003,-109005.98505692,0.00019995,2]
[363710490,1748836246058,-5598.32674356,0.00019995,2]
[363710491,1748836246069,-3178.49582213,0.00019995,2]
[363710492,1748836246164,-1125.30532543,0.00019995,2]
[363710498,1748836331664,205.0,0.00018796,2]
[363710499,1748836597916,-420.0,0.00019178,2]
[363710500,1748836597947,-420.0,0.00019178,2]
[363710501,1748836597975,-428.08536614,0.00019178,2]
[363710502,1748836598001,-420.0,0.00019178,2]
[363710503,1748836598027,-494.13805671,0.00019178,2]
[363710504,1748836598053,-420.0,0.00019178,2]
[363710505,1748836598081,-547.09,0.00019178,2]
[363710506,1748836598107,-250.0,0.00019247,2]
[363710507,1748836598134,-1200.0,0.00019314,2]
[363710508,1748836598162,-420.0,0.00019315,2]
[363710509,1748836598190,-420.0,0.00019315,2]
[363710510,1748836598215,-420.0,0.00019315,2]
[363710511,1748836598244,-420.0,0.00019315,2]
[363710512,1748836598272,-547.09,0.00019315,2]
[363710513,1748836598303,-420.0,0.00019452,2]
[363710514,1748836598335,-420.0,0.00019452,2]
[363710515,1748836598362,-420.0,0.00019452,2]
[363710516,1748836598391,-547.09,0.00019452,2]
[363710517,1748836598419,-420.0,0.00019589,2]
[363710518,1748836598449,-420.0,0.00019589,2]
[363710519,1748836598475,-248.61280733,0.00019589,2]
[363710520,1748836598504,-547.09,0.00019589,2]
[363710521,1748836598536,-420.0,0.00019726,2]
[363710522,1748836598567,-420.0,0.00019726,2]
[363710523,1748836598597,-547.09,0.00019726,2]
[363710524,1748836598880,-722.10642543,0.00019733,2]
[363710525,1748836598917,-1000.0,0.00019778,2]
[363710526,1748836598944,-460.54,0.000198,2]
[363710527,1748836598971,-921.08,0.000198,2]
[363710528,1748836598998,-460.54,0.000198,2]
[363710529,1748836599024,-150.0,0.000198,2]
[363710530,1748836599056,-460.54,0.000198,2]
[363710531,1748836599083,-460.54,0.000198,2]
[363710532,1748836599109,-150.0,0.000198,2]
[363710533,1748836599135,-200.0,0.0001984,2]
[363710534,1748836599164,-420.0,0.00019863,2]
[363710535,1748836599194,-232.37960482,0.00019863,2]
[363710536,1748836599222,-547.09,0.00019863,2]
[363710537,1748836599250,-903.074169,0.000199,2]
[363710538,1748836599279,-151.0,0.000199,2]
[363710539,1748836599306,-40000.0,0.000199,2]
[363710540,1748836599333,-155.10178258,0.000199,2]
[363710541,1748836599368,-4981.55372166,0.000199,2]
[363710542,1748836599397,-196.35565226,0.00019963,2]
[363710543,1748836599424,-500.0,0.00019973,2]
[363710544,1748836599451,-500.0,0.00019973,2]
[363710545,1748836599478,-500.0,0.00019973,2]
[363710546,1748836599506,-500.0,0.00019973,2]
[363710547,1748836599534,-207.4,0.00019986,2]
[363710548,1748836599567,-151.0,0.00019988,2]
[363710549,1748836599595,-241.214195,0.00019991,2]
[363710550,1748836599625,-657.27560557,0.00019992,2]
[363710551,1748836599652,-6150.0118804,0.00019992,2]
[363710552,1748836599679,-15017.1829824,0.00019992,2]
[363710553,1748836599706,-1455.2879412,0.00019992,2]
[363710554,1748836599732,-232.1414718,0.00019992,2]
[363710555,1748836599759,-128480.1560892,0.00019992,2]
[363710556,1748836599786,-1060.16282146,0.00019995,2]
[363710557,1748836599813,-2000.0,0.00019995,2]
[363710558,1748836599841,-535.21,0.00019995,2]
[363710559,1748836599868,-200.0,0.00019995,2]
[363710560,1748836599895,-2006.84604937,0.00019996,2]
[363710561,1748836599922,-196.33091459,0.00019997,2]
[363710562,1748836599950,-200.0,0.00019997,2]
[363710563,1748836599976,-200.0,0.00019997,2]
[363710564,1748836600003,-5202.25,0.00019998,2]
[363710565,1748836600029,-37528.26814133,0.00019998,2]
[363710566,1748836600055,-2000.0,0.00019998,2]
[363710567,1748836600081,-2000.0,0.00019998,2]
[363710568,1748836600108,-300.0,0.00019999,2]
[363710569,1748836600139,-300.0,0.00019999,2]
[363710570,1748836600168,-300.0,0.00019999,2]
[363710571,1748836600195,-300.0,0.00019999,2]
[363710572,1748836600221,-300.0,0.00019999,2]
[363710573,1748836600249,-672.74919179,0.00019999,2]
[363710574,1748836600277,-300.0,0.00019999,2]
[363710575,1748836600303,-300.0,0.00019999,2]
[363710576,1748836600329,-1000.0,0.00019999,2]
[363710577,1748836600356,-1000.0,0.00019999,2]
[363710578,1748836600383,-1007.43004455,0.00019999,2]
[363710579,1748836600408,-1000.0,0.00019999,2]
[363710580,1748836600436,-265.30885213,0.00019999,2]
[363710581,1748836600464,-500.0,0.00019999,2]
[363710582,1748836600492,-644.36263571,0.00019999,2]
[363710583,1748836600520,-150.0,0.00019999,2]
[363710584,1748836600548,-150.0,0.00019999,2]
[363710585,1748836600576,-696.66152758,0.00019999,2]
[363710586,1748836600606,-696.66152758,0.00019999,2]
[363710587,1748836600632,-696.66152758,0.00019999,2]
[363710588,1748836600659,-696.66152758,0.00019999,2]
[363710589,1748836600699,-696.66152758,0.00019999,2]
[363710590,1748836600729,-696.66152758,0.00019999,2]
[363710591,1748836600757,-696.66152758,0.00019999,2]
[363710592,1748836600785,-696.66152758,0.00019999,2]
[363710593,1748836600813,-696.66152758,0.00019999,2]
[363710594,1748836600843,-696.66152758,0.00019999,2]
[363710595,1748836600874,-696.66152758,0.00019999,2]
[363710596,1748836600903,-696.66152758,0.00019999,2]
[363710597,1748836600930,-696.66152758,0.00019999,2]
[363710598,1748836600957,-696.66152758,0.00019999,2]
[363710599,1748836600984,-696.66152758,0.00019999,2]
[363710600,1748836601013,-696.66152758,0.00019999,2]
[363710601,1748836601041,-696.66152758,0.00019999,2]
[363710602,1748836601325,-696.66152758,0.00019999,2]
[363710603,1748836601360,-696.66152758,0.00019999,2]
[363710604,1748836601388,-696.66152758,0.00019999,2]
[363710605,1748836601418,-696.66152758,0.00019999,2]
[363710606,1748836601446,-696.66152758,0.00019999,2]
[363710607,1748836601473,-696.66152758,0.00019999,2]
[363710608,1748836601499,-696.66152758,0.00019999,2]
[363710609,1748836601526,-696.66152758,0.00019999,2]
[363710610,1748836601554,-696.66152758,0.00019999,2]
[363710611,1748836601581,-696.66152758,0.00019999,2]
[363710612,1748836601608,-696.66152758,0.00019999,2]
[363710613,1748836601636,-696.66152758,0.00019999,2]
[363710614,1748836601664,-696.66152758,0.00019999,2]
[363710615,1748836601693,-696.66152758,0.00019999,2]
[363710616,1748836601721,-696.66152758,0.00019999,2]
[363710617,1748836601751,-696.66152758,0.00019999,2]
[363710618,1748836601778,-696.66152758,0.00019999,2]
[363710619,1748836601805,-696.66152758,0.00019999,2]
[363710620,1748836601833,-696.66152758,0.00019999,2]
[363710621,1748836601860,-696.66152758,0.00019999,2]
[363710622,1748836601891,-696.66152758,0.00019999,2]
[363710623,1748836601918,-696.66152758,0.00019999,2]
[363710624,1748836601944,-696.66152758,0.00019999,2]
[363710625,1748836601971,-696.66152758,0.00019999,2]
[363710626,1748836601998,-696.66152758,0.00019999,2]
[363710627,1748836602025,-696.66152758,0.00019999,2]
[363710628,1748836602051,-696.66152758,0.00019999,2]
[363710629,1748836602079,-696.66152758,0.00019999,2]
[363710630,1748836602106,-696.66152758,0.00019999,2]
[363710631,1748836602132,-696.66152758,0.00019999,2]
[363710632,1748836602159,-696.66152758,0.00019999,2]
[363710633,1748836602185,-696.66152758,0.00019999,2]
[363710634,1748836602212,-696.66152758,0.00019999,2]
[363710635,1748836602238,-696.66152758,0.00019999,2]
[363710636,1748836602266,-696.66152758,0.00019999,2]
[363710637,1748836602292,-696.66152758,0.00019999,2]
[363710638,1748836602319,-696.66152758,0.00019999,2]
[363710639,1748836602346,-696.66152758,0.00019999,2]
[363710640,1748836602373,-696.66152758,0.00019999,2]
[363710641,1748836602414,-696.66152758,0.00019999,2]
[363710642,1748836602442,-696.66152758,0.00019999,2]
[363710643,1748836602470,-683.99495435,0.00019999,2]
[363710644,1748836602497,-683.99495435,0.00019999,2]
[363710645,1748836602524,-683.99495435,0.00019999,2]
[363710646,1748836602551,-683.99495435,0.00019999,2]
[363710647,1748836602578,-683.99495435,0.00019999,2]
[363710648,1748836602606,-683.99495435,0.00019999,2]
[363710649,1748836602633,-683.99495435,0.00019999,2]
[363710650,1748836602661,-683.99495435,0.00019999,2]
[363710651,1748836602690,-683.99495435,0.00019999,2]
[363710652,1748836602717,-683.99495435,0.00019999,2]
[363710653,1748836602745,-683.99495435,0.00019999,2]
[363710654,1748836602773,-683.99495435,0.00019999,2]
[363710655,1748836602800,-683.99495435,0.00019999,2]
[363710656,1748836602830,-683.99495435,0.00019999,2]
[363710657,1748836602859,-683.99495435,0.00019999,2]
[363710658,1748836602888,-683.99495435,0.00019999,2]
[363710659,1748836602916,-683.99495435,0.00019999,2]
[363710660,1748836602944,-683.99495435,0.00019999,2]
[363710661,1748836602973,-683.99495435,0.00019999,2]
[363710662,1748836603002,-683.99495435,0.00019999,2]
[363710663,1748836603032,-683.99495435,0.00019999,2]
[363710664,1748836603062,-683.99495435,0.00019999,2]
[363710665,1748836603090,-683.99495435,0.00019999,2]
[363710666,1748836603118,-683.99495435,0.00019999,2]
[363710667,1748836603145,-699.19484221,0.00019999,2]
[363710668,1748836603176,-699.19484221,0.00019999,2]
[363710669,1748836603204,-699.19484221,0.00019999,2]
[363710670,1748836603233,-699.19484221,0.00019999,2]
[363710671,1748836603261,-699.19484221,0.00019999,2]
[363710672,1748836603289,-699.19484221,0.00019999,2]
[363710673,1748836603316,-699.19484221,0.00019999,2]
[363710674,1748836603344,-699.19484221,0.00019999,2]
[363710675,1748836603372,-699.19484221,0.00019999,2]
[363710676,1748836603398,-154.905,0.00019999,2]
[363710677,1748836603426,-943.0,0.00019999,2]
[363710678,1748836603454,-1467.0,0.00019999,2]
[363710679,1748836603480,-801.0,0.00019999,2]
[363710680,1748836603509,-653.551,0.00019999,2]
[363710681,1748836603741,-588.0,0.00019999,2]
[363710682,1748836603771,-557.0,0.00019999,2]
[363710683,1748836603798,-1271.0,0.00019999,2]
[363710684,1748836603825,-925.0,0.00019999,2]
[363710685,1748836603853,-289.136,0.00019999,2]
[363710686,1748836603880,-7010.0,0.00019999,2]
[363710687,1748836603908,-4075.0,0.00019999,2]
[363710688,1748836603934,-150.915,0.00019999,2]
[363710689,1748836603960,-183.411,0.00019999,2]
[363710690,1748836603987,-150.0,0.00019999,2]
[363710691,1748836604016,-275.548,0.00019999,2]
[363710692,1748836604043,-150.401,0.00019999,2]
[363710693,1748836604069,-290.175,0.00019999,2]
[363710694,1748836604095,-238.851,0.00019999,2]
[363710695,1748836604120,-213.331,0.00019999,2]
[363710696,1748836604147,-183.619,0.00019999,2]
[363710697,1748836604173,-150.887,0.00019999,2]
[363710698,1748836604199,-263.355,0.00019999,2]
[363710699,1748836604227,-204.015,0.00019999,2]
[363710700,1748836604254,-850.0,0.00019999,2]
[363710701,1748836604281,-882.0,0.00019999,2]
[363710702,1748836604308,-1157.0,0.00019999,2]
[363710703,1748836604334,-932.0,0.0002,2]
[363710704,1748836604362,-615.43600895,0.0002,2]
[363710705,1748836604392,-548164.49781019,0.0002,2]
[363710706,1748836604421,-4249453.65002597,0.0002,2]
[363710707,1748836604449,-1788453.42688107,0.0002,2]
[363710708,1748836604477,-3162.63259956,0.0002,2]
[363710709,1748836604504,-500.0,0.0002,2]
[363710710,1748836604531,-500.0,0.0002,2]
[363710711,1748836604558,-500.0,0.0002,2]
[363710712,1748836604585,-500.0,0.0002,2]
[363710713,1748836604614,-250.0,0.0002,2]
[363710714,1748836604643,-5000.0,0.0002,2]
[363710715,1748836604670,-500.0,0.0002,2]
[363710716,1748836604701,-1225319.85839323,0.0002,2]
[363710717,1748836604729,-528.97285478,0.0002,2]
[363710718,1748836604757,-1249315.74865812,0.0002,2]
[363710719,1748836604783,-22447.94,0.0002,2]
[363710720,1748836604809,-426.06,0.0002,2]
[363710721,1748836604838,-535797.89928177,0.0002,2]
[363710769,1748836848834,338.6,0.00013699,2]
[363710770,1748837068868,426.11,0.00017056,2]
[363710771,1748837141909,1741.86322993,0.00018,2]
[363710775,1748837216212,250.0,0.00018958,2]
[363710785,1748837367515,23762.08587309,0.00019,2]
[363710791,1748837412099,554.0,0.00023,30]
[363710795,1748837428194,517.0,0.00023,30]
[363710801,1748837432408,-813.67437472,0.00019059,2]
[363710802,1748837432419,-186.32562528,0.00019059,2]
[363710803,1748837432429,-250.0,0.00019074,2]
[363710804,1748837432439,-715.48700746,0.00019177,2]
[363711514,1748837440000,-484.51299254,0.00019177,2]
[363711516,1748837440011,-40.34603366,0.00019177,2]
[363711603,1748837442970,-259.65396634,0.00019177,2]
[363711604,1748837442979,-570.46,0.00019178,2]
[363711605,1748837442989,-152.43603366,0.00019178,2]
[363711606,1748837443001,-277.94256148,0.00019178,2]
[363711608,1748837443012,-566.02723717,0.00019178,2]
[363711609,1748837443023,-437.46748402,0.00019178,2]
[363711610,1748837443034,-178.70650942,0.00019178,2]
[363711611,1748837443044,-429.28827707,0.00019178,2]
[363711612,1748837443054,-518.728278,0.00019178,2]
[363711613,1748837443063,-429.58617999,0.00019178,2]
[363711614,1748837443074,-422.52465271,0.00019178,2]
[363711615,1748837443083,-466.87420795,0.00019178,2]
[363711616,1748837443093,-420.0,0.00019178,2]
[363711617,1748837443103,-420.57482045,0.00019178,2]
[363711618,1748837443113,-420.0,0.00019178,2]
[363711619,1748837443122,-420.0,0.00019178,2]
[363711620,1748837443133,-495.32351749,0.00019178,2]
[363711621,1748837443142,-151.0,0.00019178,2]
[363711622,1748837443152,-570.46,0.00019315,2]
[363711623,1748837443161,-420.0,0.00019315,2]
[363711624,1748837443171,-420.0,0.00019315,2]
[363711625,1748837443180,-420.0,0.00019315,2]
[363711626,1748837443190,-426.11,0.0001932,2]
[363711627,1748837443199,-207.4,0.00019358,2]
[363711628,1748837443209,-801.0,0.0001937,2]
[363711629,1748837443218,-635.0,0.0001937,2]
[363711630,1748837443229,-555.0777237,0.0001937,2]
[363711631,1748837445994,-911.9222763,0.0001937,2]
[363711632,1748837446004,-925.0,0.0001937,2]
[363711633,1748837446015,-588.0,0.0001937,2]
[363711634,1748837446025,-1271.0,0.0001937,2]
[363711635,1748837446035,-557.0,0.0001937,2]
[363711636,1748837446044,-570.46,0.00019452,2]
[363711637,1748837446054,-363.72125258,0.00019452,2]
[363711638,1748837446361,-56.27874742,0.00019452,2]
[363711639,1748837446371,-225.81275641,0.00019452,2]
[363711640,1748837446380,-420.0,0.00019452,2]
[363711641,1748837446391,-570.46,0.00019589,2]
[363711642,1748837446403,-308.90480977,0.00019589,2]
[363711650,1748837628035,150.0,0.00018979,7]
[363711651,1748837790446,1000.0,0.00018967,2]
[363711652,1748838090571,383.49,0.0001704,2]
[363711653,1748838186365,330.02,0.00013699,2]
[363711656,1748838243804,5000.0,0.00023,30]
[363711657,1748838287537,5000.0,0.00023,30]
[363711659,1748838481086,281.48,0.00018932,2]
[363711676,1748838632386,-207.4,0.00019166,2]
[363711677,1748838632397,-91.95962581,0.00019169,2]
[363711678,1748838632444,-158.04037419,0.00019169,2]
[363711679,1748838632454,-300.0,0.00019177,2]
[363711680,1748838632465,-478.75422602,0.00019177,2]
[363712174,1748838638092,-721.24577398,0.00019177,2]
[363712175,1748838638101,-537.53040084,0.00019178,2]
[363712176,1748838638111,-422.79884909,0.00019178,2]
[363712177,1748838638120,-420.0,0.00019178,2]
[363712179,1748838638129,-431.26371936,0.00019178,2]
[363712181,1748838638139,-430.02747192,0.00019178,2]
[363712183,1748838638148,-441.55746039,0.00019178,2]
[363712185,1748838638157,-432.19087134,0.00019178,2]
[363712187,1748838638167,-420.0,0.00019178,2]
[363712189,1748838638176,-425.34706175,0.00019178,2]
[363712191,1748838638185,-53.74737263,0.00019178,2]
[363712193,1748838638197,-369.1946157,0.00019178,2]
[363712195,1748838638206,-234.2705423,0.00019178,2]
[363712201,1748838638254,-185.7294577,0.00019178,2]
[363712203,1748838638263,-420.0,0.00019178,2]
[363712204,1748838638272,-420.0,0.00019178,2]
[363712206,1748838638281,-420.0,0.00019178,2]
[363712208,1748838638291,-250.9655423,0.00019178,2]
[363712363,1748838640137,-254.4244577,0.00019178,2]
[363712365,1748838640147,-270.6755423,0.00019178,2]
[363712371,1748838640194,-149.3244577,0.00019178,2]
[363712373,1748838640204,-447.50916739,0.00019178,2]
[363712375,1748838640213,-441.71462385,0.00019178,2]
[363712376,1748838640224,-431.74657133,0.00019178,2]
[363712378,1748838640234,-420.0,0.00019178,2]
[363712380,1748838640243,-475.38,0.00019178,2]
[363712382,1748838640252,-420.0,0.00019178,2]
[363712384,1748838640262,-420.0,0.00019178,2]
[363712386,1748838640271,-420.0,0.00019178,2]
[363712388,1748838640280,-420.4610281,0.00019178,2]
[363712390,1748838640291,-420.0,0.00019178,2]
[363712392,1748838640301,-450.86210046,0.00019178,2]
[363712394,1748838640310,-421.59817034,0.00019178,2]
[363712396,1748838640321,-420.0,0.00019178,2]
[363712398,1748838640330,-420.0,0.00019178,2]
[363712400,1748838640340,-420.0,0.00019178,2]
[363712402,1748838640350,-420.0,0.00019178,2]
[363712405,1748838640360,-420.0,0.00019178,2]
[363712406,1748838640370,-420.0,0.00019178,2]
[363712409,1748838640379,-420.0,0.00019178,2]
[363712410,1748838640389,-420.0,0.00019178,2]
[363712412,1748838640398,-420.0,0.00019178,2]
[363712414,1748838640409,-420.0,0.00019178,2]
[363712416,1748838640419,-383.99529733,0.00019178,2]
[363712611,1748838643191,-36.00470267,0.00019178,2]
[363712612,1748838643201,-268.86464055,0.00019178,2]
[363712613,1748838643248,-151.13535945,0.00019178,2]
[363712614,1748838643257,-785.21,0.00019178,2]
[363712615,1748838643267,-420.0,0.00019178,2]
[363712616,1748838643276,-482.55891617,0.00019178,2]
[363712617,1748838643285,-420.0,0.00019178,2]
[363712618,1748838643295,-494.73034395,0.00019178,2]
[363712619,1748838643304,-444.17876055,0.00019178,2]
[363712620,1748838643314,-168.16399425,0.00019178,2]
[363712621,1748838643323,-484.96,0.00019178,2]
[363712622,1748838643333,-420.0,0.00019178,2]
[363712623,1748838643342,-420.0,0.00019178,2]
[363712624,1748838643351,-420.0,0.00019178,2]
[363712625,1748838643361,-454.27342786,0.00019178,2]
[363712626,1748838643370,-421.65746031,0.00019178,2]
[363712627,1748838643379,-488.2878882,0.00019178,2]
[363712628,1748838643388,-420.0,0.00019178,2]
[363712629,1748838643397,-492.58990376,0.00019178,2]
[363712630,1748838643407,-151.0,0.00019178,2]
[363712632,1748838643416,-383.49,0.00019304,2]
[363712633,1748838643424,-274082.24890509,0.00019315,2]
[363712634,1748838643434,-241.30983966,0.00019315,2]
[363712635,1748838643443,-420.0,0.00019315,2]
[363712636,1748838643452,-420.0,0.00019315,2]
[363712637,1748838643461,-475.38,0.00019315,2]
[363712638,1748838643470,-328.4632067,0.00019315,2]
[363712639,1748838643480,-326.45513783,0.00019315,2]
[363712640,1748838643489,-420.0,0.00019315,2]
[363712641,1748838643498,-465.18,0.00019315,2]
[363712642,1748838643507,-420.0,0.00019315,2]
[363712643,1748838643517,-307.93,0.00019315,2]
[363712646,1748838643526,-420.0,0.00019315,2]
[363712647,1748838643535,-420.0,0.00019315,2]
[363712648,1748838643545,-420.0,0.00019315,2]
[363712649,1748838643554,-420.0,0.00019315,2]
[363712650,1748838643563,-785.21,0.00019315,2]
[363712651,1748838643572,-420.0,0.00019315,2]
[363712652,1748838643582,-420.0,0.00019315,2]
[363712653,1748838643591,-181.73,0.00019315,2]
[363712654,1748838643600,-420.0,0.00019452,2]
[363712655,1748838643609,-420.0,0.00019452,2]
[363712656,1748838643618,-475.38,0.00019452,2]
[363712657,1748838643627,-159.40166153,0.00019452,2]
[363712658,1748838643639,-420.0,0.00019452,2]
[363712659,1748838643648,-420.0,0.00019452,2]
[363712660,1748838643657,-256.19534162,0.00019452,2]
[363712661,1748838643667,-420.0,0.00019452,2]
[363712662,1748838643676,-420.0,0.00019452,2]
[363712663,1748838643687,-785.21,0.00019452,2]
[363712664,1748838643699,-323.35306758,0.00019452,2]
[363712665,1748838643708,-420.0,0.00019452,2]
[363712666,1748838643717,-420.0,0.00019589,2]
[363712667,1748838643727,-465.13241469,0.00019589,2]
[363712668,1748838643736,-475.38,0.00019589,2]
[363712669,1748838643746,-420.0,0.00019589,2]
[363712670,1748838643755,-392.46952782,0.00019589,2]
[363712671,1748838643765,-420.0,0.00019589,2]
[363712672,1748838643774,-420.0,0.00019589,2]
[363712673,1748838643783,-785.21,0.00019589,2]
[363712674,1748838643793,-420.0,0.00019589,2]
[363712675,1748838643802,-812.766753,0.00019726,2]
[363712676,1748838643811,-320.37918033,0.00019726,2]
[363712677,1748838643820,-475.38,0.00019726,2]
[363712678,1748838643829,-420.0,0.00019726,2]
[363712679,1748838643839,-341.88030182,0.00019726,2]
[363712680,1748838643848,-420.0,0.00019726,2]
[363712681,1748838643857,-785.21,0.00019726,2]
[363712682,1748838643866,-420.0,0.00019726,2]
[363712683,1748838643876,-156.587,0.00019726,2]
[363712684,1748838643886,-584.04523674,0.00019791,2]
[363712685,1748838643895,-150.0,0.000198,2]
[363712686,1748838643904,-460.54,0.000198,2]
[363712687,1748838643913,-150.0,0.000198,2]
[363712688,1748838643922,-150.0,0.000198,2]
[363712689,1748838643931,-200.0,0.0001984,2]
[363712690,1748838643941,-475.38,0.00019863,2]
[363712691,1748838643950,-420.0,0.00019863,2]
[363712692,1748838643959,-420.0,0.00019863,2]
[363712693,1748838643969,-785.21,0.00019863,2]
[363712694,1748838643978,-420.0,0.00019863,2]
[363712695,1748838643987,-151.0,0.00019887,2]
[363712696,1748838643996,-307.71800448,0.0001989,2]
[363712697,1748838644005,-608.92875061,0.00019891,2]
[363712698,1748838644014,-419.99999901,0.000199,2]
[363712699,1748838644024,-1062.456895,0.000199,2]
[363712700,1748838644034,-2000.0,0.000199,2]
[363712701,1748838644043,-150.0,0.000199,2]
[363712702,1748838644052,-291.28,0.000199,2]
[363712703,1748838644061,-150.0,0.000199,2]
[363712704,1748838644071,-292.19,0.000199,2]
[363712705,1748838644080,-170.4,0.000199,2]
[363712706,1748838644089,-2323.08,0.000199,2]
[363712707,1748838644098,-170.4,0.000199,2]
[363712708,1748838644107,-460.54,0.000199,2]
[363712709,1748838644116,-921.08,0.000199,2]
[363712710,1748838644126,-2000.0,0.000199,2]
[363712711,1748838644135,-2000.0,0.000199,2]
[363712712,1748838644144,-2000.0,0.000199,2]
[363712713,1748838644154,-921.08,0.000199,2]
[363712714,1748838644163,-2000.0,0.000199,2]
[363712715,1748838644172,-460.54,0.000199,2]
[363712716,1748838644181,-921.08,0.000199,2]
[363712717,1748838644190,-150.0,0.000199,2]
[363712718,1748838644199,-460.34,0.000199,2]
[363712719,1748838644209,-4815.50193117,0.000199,2]
[363712720,1748838644219,-460.46,0.000199,2]
[363712721,1748838644229,-150.0,0.000199,2]
[363712722,1748838644239,-150.0,0.000199,2]
[363712723,1748838644248,-150.39,0.000199,2]
[363712724,1748838644257,-150.21,0.000199,2]
[363712725,1748838644267,-150.29,0.000199,2]
[363712726,1748838644276,-152.47787818,0.00019942,2]
[363712727,1748838644286,-635.0,0.00019959,2]
[363712728,1748838644295,-1467.0,0.00019959,2]
[363712729,1748838644304,-801.0,0.00019959,2]
[363712730,1748838644313,-557.0,0.00019959,2]
[363712731,1748838644324,-588.0,0.00019959,2]
[363712732,1748838644333,-1271.0,0.00019959,2]
[363712733,1748838644343,-925.0,0.00019959,2]
[363712734,1748838644353,-1157.0,0.00019959,2]
[363712735,1748838644363,-943.0,0.00019959,2]
[363712736,1748838644372,-4075.0,0.00019959,2]
[363712737,1748838644382,-7010.0,0.00019959,2]
[363712738,1748838644391,-175.864,0.00019959,2]
[363712739,1748838644401,-793.654,0.00019967,2]
[363712740,1748838644410,-500.0,0.00019973,2]
[363712741,1748838644420,-500.0,0.00019973,2]
[363712742,1748838644430,-500.0,0.00019973,2]
[363712743,1748838644439,-500.0,0.00019973,2]
[363712744,1748838644448,-150.0,0.00019981,2]
[363712745,1748838644458,-150.0,0.00019981,2]
[363712746,1748838644467,-163.07,0.00019981,2]
[363712747,1748838644476,-163.07,0.00019981,2]
[363712748,1748838644485,-163.07,0.00019981,2]
[363712749,1748838644495,-163.07,0.00019981,2]
[363712750,1748838644504,-26425.54517195,0.0001999,2]
[363712751,1748838644513,-159.03,0.0001999,2]